[Event "*** SCC Grand Prix: Titled Tuesday Blitz"]
[Site "Chess.com"]
[Date "2020.09.08"]
[Round "10"]
[White "Jenia84"]
[Black "Bayernbk"]
[Result "1-0"]
[WhiteElo "2350"]
[BlackElo "2508"]
[TimeControl "180+1"]
[EndTime "11:55:56 PDT"]
[Termination "Jenia84 won by resignation"]

1. Nf3 {[%clk 0:03:00.9]} 1... Nf6 {[%clk 0:02:59.8]} 2. b3 {[%clk 0:02:52]}
2... e6 {[%clk 0:03:00.1]} 3. Bb2 {[%clk 0:02:52.2]} 3... d5 {[%clk 0:03:00.6]}
4. e3 {[%clk 0:02:52]} 4... Be7 {[%clk 0:03:00.7]} 5. Be2 {[%clk 0:02:51.9]}
5... O-O {[%clk 0:03:01.3]} 6. O-O {[%clk 0:02:52.5]} 6... c5 {[%clk 0:03:01.7]}
7. c4 {[%clk 0:02:51.3]} 7... Nc6 {[%clk 0:03:02.1]} 8. Ne5 {[%clk 0:02:47.2]}
8... Nxe5 {[%clk 0:03:00.8]} 9. Bxe5 {[%clk 0:02:46.2]} 9... Nd7 {[%clk
0:02:59.3]} 10. Bb2 {[%clk 0:02:46]} 10... b6 {[%clk 0:02:59.3]} 11. cxd5 {[%clk
0:02:42.4]} 11... exd5 {[%clk 0:02:58.5]} 12. d4 {[%clk 0:02:42.5]} 12... cxd4
{[%clk 0:02:55]} 13. Bxd4 {[%clk 0:02:41.6]} 13... Nc5 {[%clk 0:02:52.9]} 14.
Nc3 {[%clk 0:02:38.3]} 14... Bb7 {[%clk 0:02:45.6]} 15. Qd2 {[%clk 0:02:34.2]}
15... Rc8 {[%clk 0:02:40.1]} 16. Rfd1 {[%clk 0:02:30.4]} 16... Ne4 {[%clk
0:02:39.8]} 17. Nxe4 {[%clk 0:02:20.1]} 17... dxe4 {[%clk 0:02:39.5]} 18. Rac1
{[%clk 0:02:20.4]} 18... Qd7 {[%clk 0:02:23.1]} 19. h3 {[%clk 0:02:15]} 19... h6
{[%clk 0:02:17.6]} 20. Rxc8 {[%clk 0:02:10.6]} 20... Rxc8 {[%clk 0:02:16.9]} 21.
Qb2 {[%clk 0:02:10.4]} 21... Qc6 {[%clk 0:01:44]} 22. Bxg7 {[%clk 0:01:55.3]}
22... Qc2 {[%clk 0:01:42.4]} 23. Rd7 {[%clk 0:01:14.3]} 23... Qxb2 {[%clk
0:00:28.5]} 24. Bxb2 {[%clk 0:01:12.7]} 24... Bb4 {[%clk 0:00:20.1]} 25. Bc4
{[%clk 0:00:51.2]} 25... Bc6 {[%clk 0:00:14.1]} 26. Rxf7 {[%clk 0:00:43.3]}
26... Re8 {[%clk 0:00:08.7]} 27. Rxa7+ {[%clk 0:00:29.8]} 1-0

[Event "*** SCC Grand Prix: Titled Tuesday Blitz"]
[Site "Chess.com"]
[Date "2020.09.08"]
[Round "10"]
[White "chessdjw"]
[Black "Andrii_Prydun"]
[Result "1-0"]
[WhiteElo "2567"]
[BlackElo "2404"]
[TimeControl "180+1"]
[EndTime "11:56:01 PDT"]
[Termination "chessdjw won by resignation"]

1. e4 {[%clk 0:03:00.9]} 1... d5 {[%clk 0:02:59.5]} 2. exd5 {[%clk 0:02:59.2]}
2... Qxd5 {[%clk 0:03:00.4]} 3. Nc3 {[%clk 0:02:59.6]} 3... Qd6 {[%clk
0:03:00.8]} 4. d4 {[%clk 0:02:59.8]} 4... Nf6 {[%clk 0:03:00.6]} 5. Nf3 {[%clk
0:02:58.6]} 5... c6 {[%clk 0:03:01]} 6. g3 {[%clk 0:02:56.3]} 6... Bf5 {[%clk
0:03:00]} 7. Bg2 {[%clk 0:02:55.4]} 7... Nbd7 {[%clk 0:02:59.4]} 8. O-O {[%clk
0:02:54]} 8... h6 {[%clk 0:02:58.9]} 9. Re1 {[%clk 0:02:51.3]} 9... e6 {[%clk
0:02:58.9]} 10. Bf4 {[%clk 0:02:26.5]} 10... Qb4 {[%clk 0:02:58.6]} 11. Rb1
{[%clk 0:02:23.9]} 11... Be7 {[%clk 0:02:58.2]} 12. a3 {[%clk 0:02:23.6]} 12...
Qa5 {[%clk 0:02:58]} 13. Nd2 {[%clk 0:02:04.6]} 13... O-O {[%clk 0:02:54.6]} 14.
Nc4 {[%clk 0:02:04.4]} 14... Qd8 {[%clk 0:02:54.6]} 15. b4 {[%clk 0:01:59.2]}
15... Nb6 {[%clk 0:02:49.3]} 16. Na5 {[%clk 0:01:57.9]} 16... Qd7 {[%clk
0:02:45.8]} 17. h3 {[%clk 0:01:53.9]} 17... Nfd5 {[%clk 0:02:35.3]} 18. Bd2
{[%clk 0:01:51.7]} 18... Bf6 {[%clk 0:02:33.4]} 19. Ne2 {[%clk 0:01:49.9]} 19...
Nc7 {[%clk 0:02:21.3]} 20. Nxb7 {[%clk 0:01:47]} 20... Nb5 {[%clk 0:02:16.2]}
21. Nc5 {[%clk 0:01:45.5]} 21... Qc8 {[%clk 0:02:09.8]} 22. Bc1 {[%clk
0:01:34.2]} 22... Rd8 {[%clk 0:02:05.3]} 23. Rb3 {[%clk 0:01:18.2]} 23... Nxd4
{[%clk 0:01:57]} 24. Nxd4 {[%clk 0:01:16.9]} 24... Rxd4 {[%clk 0:01:52.8]} 25.
Qe2 {[%clk 0:01:15.5]} 25... Rc4 {[%clk 0:01:18.3]} 26. Ne4 {[%clk 0:01:06.9]}
26... Be7 {[%clk 0:01:11.1]} 27. Bb2 {[%clk 0:00:53.1]} 27... Qa6 {[%clk
0:00:56.4]} 28. Nd2 {[%clk 0:00:47.4]} 28... Rd8 {[%clk 0:00:32.8]} 29. Bf1
{[%clk 0:00:45]} 29... Bxc2 {[%clk 0:00:08.7]} 30. Rc3 {[%clk 0:00:41.5]} 30...
Rxc3 {[%clk 0:00:08.6]} 31. Qxa6 {[%clk 0:00:40.8]} 31... Rxd2 {[%clk
0:00:04.4]} 32. Bxc3 {[%clk 0:00:40.3]} 1-0

[Event "*** SCC Grand Prix: Titled Tuesday Blitz"]
[Site "Chess.com"]
[Date "2020.09.08"]
[Round "10"]
[White "HouseOfDurin"]
[Black "Matols"]
[Result "1-0"]
[WhiteElo "2142"]
[BlackElo "2246"]
[TimeControl "180+1"]
[EndTime "11:56:05 PDT"]
[Termination "HouseOfDurin won by resignation"]

1. d4 {[%clk 0:03:00.9]} 1... Nf6 {[%clk 0:02:59.4]} 2. Bg5 {[%clk 0:03:01.4]}
2... d5 {[%clk 0:02:58.4]} 3. Bxf6 {[%clk 0:03:01.5]} 3... exf6 {[%clk
0:02:58.2]} 4. e3 {[%clk 0:03:02.4]} 4... Bd6 {[%clk 0:02:57.8]} 5. c4 {[%clk
0:03:02.6]} 5... c6 {[%clk 0:02:56.5]} 6. cxd5 {[%clk 0:03:02.4]} 6... cxd5
{[%clk 0:02:56.2]} 7. Nc3 {[%clk 0:03:02.9]} 7... Be6 {[%clk 0:02:48.7]} 8. g3
{[%clk 0:03:03.3]} 8... O-O {[%clk 0:02:45.1]} 9. Bg2 {[%clk 0:03:03.8]} 9...
Nc6 {[%clk 0:02:39.2]} 10. Nge2 {[%clk 0:03:04.2]} 10... Re8 {[%clk 0:02:32.3]}
11. O-O {[%clk 0:03:03.6]} 11... Qa5 {[%clk 0:02:30]} 12. a3 {[%clk 0:03:03]}
12... Ne7 {[%clk 0:02:23.9]} 13. b4 {[%clk 0:03:02.9]} 13... Qc7 {[%clk
0:02:21.1]} 14. Qb3 {[%clk 0:02:59.8]} 14... a6 {[%clk 0:02:12.6]} 15. Rac1
{[%clk 0:02:54.9]} 15... Qd7 {[%clk 0:02:10.3]} 16. Nxd5 {[%clk 0:02:45.8]}
16... Rad8 {[%clk 0:01:45]} 17. Nxe7+ {[%clk 0:02:29.7]} 17... Bxe7 {[%clk
0:01:42.4]} 18. Qc2 {[%clk 0:02:14.8]} 18... Bh3 {[%clk 0:01:39.5]} 19. Qc7
{[%clk 0:02:04.1]} 19... Bxg2 {[%clk 0:01:32.5]} 20. Qxd7 {[%clk 0:02:02.8]}
20... Rxd7 {[%clk 0:01:31.4]} 21. Kxg2 {[%clk 0:02:03.2]} 21... g5 {[%clk
0:01:29.6]} 22. Rc2 {[%clk 0:01:57.8]} 22... Kg7 {[%clk 0:01:27.2]} 23. Rfc1
{[%clk 0:01:57.9]} 23... h5 {[%clk 0:01:25.6]} 24. Rc7 {[%clk 0:01:49.2]} 24...
Red8 {[%clk 0:01:25.2]} 25. Rxd7 {[%clk 0:01:45.9]} 25... Rxd7 {[%clk
0:01:24.9]} 26. Rc8 {[%clk 0:01:46.5]} 26... Kg6 {[%clk 0:01:20.3]} 27. Nc3
{[%clk 0:01:45.4]} 27... f5 {[%clk 0:01:15.4]} 28. Kf3 {[%clk 0:01:43.1]} 28...
Kf6 {[%clk 0:01:13.1]} 29. Na4 {[%clk 0:01:31.1]} 29... f4 {[%clk 0:00:51.6]}
30. gxf4 {[%clk 0:01:28.4]} 30... gxf4 {[%clk 0:00:51]} 31. Nc5 {[%clk
0:01:03.6]} 31... Rd5 {[%clk 0:00:40.5]} 32. Kxf4 {[%clk 0:00:53.4]} 32... Bd6+
{[%clk 0:00:37.7]} 33. Ke4 {[%clk 0:00:53.3]} 33... Rg5 {[%clk 0:00:33.4]} 34.
f4 {[%clk 0:00:50.1]} 34... Rg2 {[%clk 0:00:31.7]} 35. Nxb7 {[%clk 0:00:49.1]}
35... Be7 {[%clk 0:00:30.6]} 36. Rc6+ {[%clk 0:00:47.4]} 36... Kg7 {[%clk
0:00:30.5]} 37. d5 {[%clk 0:00:42.6]} 37... Rxh2 {[%clk 0:00:30]} 38. d6 {[%clk
0:00:42.7]} 38... Bf6 {[%clk 0:00:28.3]} 39. d7 {[%clk 0:00:42.1]} 39... Rd2
{[%clk 0:00:27.7]} 40. Rxf6 {[%clk 0:00:41.7]} 40... Kxf6 {[%clk 0:00:26.9]} 41.
d8=Q+ {[%clk 0:00:41.7]} 41... Rxd8 {[%clk 0:00:25.7]} 42. Nxd8 {[%clk
0:00:42.6]} 42... h4 {[%clk 0:00:25.3]} 43. Kf3 {[%clk 0:00:42.3]} 1-0

[Event "*** SCC Grand Prix: Titled Tuesday Blitz"]
[Site "Chess.com"]
[Date "2020.09.08"]
[Round "10"]
[White "Zemerovv"]
[Black "Ariadna_Atreides"]
[Result "1-0"]
[WhiteElo "2320"]
[BlackElo "2061"]
[TimeControl "180+1"]
[EndTime "11:56:09 PDT"]
[Termination "Zemerovv won on time"]

1. Nf3 {[%clk 0:03:00.9]} 1... d5 {[%clk 0:02:59.1]} 2. c4 {[%clk 0:02:59.5]}
2... c6 {[%clk 0:02:58]} 3. e3 {[%clk 0:02:57.6]} 3... Nf6 {[%clk 0:02:57.4]} 4.
b3 {[%clk 0:02:57.4]} 4... Bg4 {[%clk 0:02:43.7]} 5. Bb2 {[%clk 0:02:56.6]} 5...
Nbd7 {[%clk 0:02:40.9]} 6. Be2 {[%clk 0:02:56.2]} 6... e6 {[%clk 0:02:40]} 7.
O-O {[%clk 0:02:55.5]} 7... Bd6 {[%clk 0:02:38.8]} 8. d4 {[%clk 0:02:54.8]} 8...
O-O {[%clk 0:02:37.2]} 9. Ne5 {[%clk 0:02:52.7]} 9... Bxe2 {[%clk 0:02:35.9]}
10. Qxe2 {[%clk 0:02:52.5]} 10... Qc7 {[%clk 0:02:24.5]} 11. f4 {[%clk
0:02:51.4]} 11... Ne4 {[%clk 0:02:19.3]} 12. c5 {[%clk 0:02:45]} 12... Bxe5
{[%clk 0:02:07.7]} 13. fxe5 {[%clk 0:02:42.7]} 13... f5 {[%clk 0:02:05.4]} 14.
Nd2 {[%clk 0:02:34.2]} 14... b5 {[%clk 0:01:37.6]} 15. Rf3 {[%clk 0:02:25.5]}
15... Rf7 {[%clk 0:01:30.3]} 16. Raf1 {[%clk 0:02:22.2]} 16... Raf8 {[%clk
0:01:13.5]} 17. a3 {[%clk 0:02:21.4]} 17... a6 {[%clk 0:01:08.3]} 18. Rh3 {[%clk
0:02:18.2]} 18... Qd8 {[%clk 0:00:45.3]} 19. Nxe4 {[%clk 0:02:13.8]} 19... fxe4
{[%clk 0:00:33.1]} 20. Rxf7 {[%clk 0:02:11.8]} 20... Rxf7 {[%clk 0:00:32.9]} 21.
Bc3 {[%clk 0:02:05.2]} 21... Nf8 {[%clk 0:00:13.9]} 22. Qh5 {[%clk 0:01:56.2]}
22... Qe7 {[%clk 0:00:08.5]} 23. Be1 {[%clk 0:01:53.9]} 23... Rf5 {[%clk
0:00:08.2]} 24. Qe2 {[%clk 0:01:47.9]} 24... Qf7 {[%clk 0:00:08]} 25. Rg3 {[%clk
0:01:41.4]} 25... Ng6 {[%clk 0:00:07.5]} 26. Rg4 {[%clk 0:01:39.6]} 26... Kh8
{[%clk 0:00:05.1]} 27. h3 {[%clk 0:01:38]} 27... Kg8 {[%clk 0:00:04.4]} 28. a4
{[%clk 0:01:34.8]} 28... h5 {[%clk 0:00:03.9]} 29. Rg3 {[%clk 0:01:33.2]} 29...
Kh7 {[%clk 0:00:03.2]} 30. Ba5 {[%clk 0:01:26.5]} 30... Kh6 {[%clk 0:00:03.3]}
31. Bd8 {[%clk 0:01:24.8]} 31... h4 {[%clk 0:00:03.2]} 32. Rg4 {[%clk
0:01:24.1]} 32... Qf8 {[%clk 0:00:03.5]} 33. Bxh4 {[%clk 0:01:20.2]} 33... Qf7
{[%clk 0:00:03.6]} 34. Bg3 {[%clk 0:01:17.8]} 34... Rh5 {[%clk 0:00:03.7]} 35.
Kh2 {[%clk 0:01:12.3]} 35... Rf5 {[%clk 0:00:03.5]} 36. Qe1 {[%clk 0:01:08.9]}
36... Rf1 {[%clk 0:00:03.4]} 37. Qa5 {[%clk 0:01:08.1]} 37... Rb1 {[%clk
0:00:03]} 38. Qb6 {[%clk 0:01:03.9]} 38... Qf1 {[%clk 0:00:03]} 39. Bf4+ {[%clk
0:00:59.7]} 39... Nxf4 {[%clk 0:00:01.6]} 40. Rh4+ {[%clk 0:00:56.8]} 1-0

[Event "*** SCC Grand Prix: Titled Tuesday Blitz"]
[Site "Chess.com"]
[Date "2020.09.08"]
[Round "10"]
[White "jeetjain"]
[Black "Goryachkina"]
[Result "0-1"]
[WhiteElo "2442"]
[BlackElo "2603"]
[TimeControl "180+1"]
[EndTime "11:56:10 PDT"]
[Termination "Goryachkina won by resignation"]

1. e4 {[%clk 0:03:00.9]} 1... e6 {[%clk 0:02:59.9]} 2. d4 {[%clk 0:02:58]} 2...
d5 {[%clk 0:03:00.2]} 3. Nc3 {[%clk 0:02:58.6]} 3... Bb4 {[%clk 0:03:00.2]} 4.
exd5 {[%clk 0:02:58.3]} 4... exd5 {[%clk 0:03:00]} 5. Bd3 {[%clk 0:02:56.6]}
5... Nf6 {[%clk 0:02:58.4]} 6. Ne2 {[%clk 0:02:51]} 6... O-O {[%clk 0:02:57.5]}
7. O-O {[%clk 0:02:50.6]} 7... c6 {[%clk 0:02:57.6]} 8. Bg5 {[%clk 0:02:44.5]}
8... h6 {[%clk 0:02:51.9]} 9. Bh4 {[%clk 0:02:43.1]} 9... Nbd7 {[%clk
0:02:45.7]} 10. Bg3 {[%clk 0:02:28.1]} 10... Re8 {[%clk 0:02:44.1]} 11. a3
{[%clk 0:02:27.1]} 11... Ba5 {[%clk 0:02:42.5]} 12. Nf4 {[%clk 0:02:25.3]} 12...
Nf8 {[%clk 0:02:41.6]} 13. Nh5 {[%clk 0:02:17.7]} 13... Nxh5 {[%clk 0:02:34.6]}
14. Qxh5 {[%clk 0:02:17.2]} 14... Qg5 {[%clk 0:02:29.9]} 15. Qxg5 {[%clk
0:02:07.3]} 15... hxg5 {[%clk 0:02:29.7]} 16. b4 {[%clk 0:02:07.5]} 16... Bb6
{[%clk 0:02:27.5]} 17. Ne2 {[%clk 0:02:03.3]} 17... Bg4 {[%clk 0:02:10]} 18. f3
{[%clk 0:02:00.5]} 18... Bf5 {[%clk 0:02:10.1]} 19. Bxf5 {[%clk 0:01:41]} 19...
Rxe2 {[%clk 0:02:09.6]} 20. Bf2 {[%clk 0:01:39.6]} 20... Rxf2 {[%clk 0:02:07.5]}
21. Kxf2 {[%clk 0:01:37.5]} 21... Bxd4+ {[%clk 0:02:07.7]} 22. Ke2 {[%clk
0:01:34.4]} 22... Bxa1 {[%clk 0:02:07.5]} 23. Rxa1 {[%clk 0:01:35.3]} 23... a5
{[%clk 0:02:07.1]} 24. Rb1 {[%clk 0:01:26.7]} 24... g6 {[%clk 0:02:06.8]} 25.
Bd3 {[%clk 0:01:24.9]} 25... axb4 {[%clk 0:02:06.9]} 26. axb4 {[%clk 0:01:20.1]}
26... Ne6 {[%clk 0:02:04.6]} 27. Kd2 {[%clk 0:01:14.6]} 27... Kg7 {[%clk
0:02:03.4]} 28. h3 {[%clk 0:01:13.7]} 28... Kf6 {[%clk 0:01:54.1]} 29. Kc3
{[%clk 0:01:03.5]} 29... Ke5 {[%clk 0:01:53.6]} 30. Re1+ {[%clk 0:01:02.5]}
30... Kd6 {[%clk 0:01:53.7]} 31. Rb1 {[%clk 0:01:02.9]} 31... Nf4 {[%clk
0:01:45.6]} 32. Bf1 {[%clk 0:00:59.2]} 32... Ra3+ {[%clk 0:01:41.4]} 33. Kd2
{[%clk 0:00:59.2]} 33... Ne6 {[%clk 0:01:38.1]} 34. Bd3 {[%clk 0:00:56.7]} 34...
f5 {[%clk 0:01:36.4]} 35. Bf1 {[%clk 0:00:44.2]} 35... Nf8 {[%clk 0:01:19.3]}
36. Bd3 {[%clk 0:00:43.3]} 36... Nd7 {[%clk 0:01:19.2]} 37. g4 {[%clk
0:00:32.2]} 37... Ne5 {[%clk 0:01:08.1]} 38. gxf5 {[%clk 0:00:30.8]} 38... gxf5
{[%clk 0:01:06.8]} 39. Bxf5 {[%clk 0:00:22.3]} 39... Rxf3 {[%clk 0:01:06.1]} 40.
Bc8 {[%clk 0:00:19.7]} 40... Kc7 {[%clk 0:01:03.4]} 41. Be6 {[%clk 0:00:16.4]}
41... Nc4+ {[%clk 0:01:03.7]} 42. Ke2 {[%clk 0:00:09.6]} 42... Re3+ {[%clk
0:01:03.9]} 0-1

[Event "*** SCC Grand Prix: Titled Tuesday Blitz"]
[Site "Chess.com"]
[Date "2020.09.08"]
[Round "10"]
[White "CalinGheorghiu"]
[Black "chessbia"]
[Result "1-0"]
[WhiteElo "2329"]
[BlackElo "2173"]
[TimeControl "180+1"]
[EndTime "11:56:11 PDT"]
[Termination "CalinGheorghiu won by resignation"]

1. e4 {[%clk 0:02:53]} 1... e5 {[%clk 0:03:00]} 2. Nf3 {[%clk 0:02:52.6]} 2...
Nc6 {[%clk 0:03:00.5]} 3. Bb5 {[%clk 0:02:51.3]} 3... a6 {[%clk 0:03:00.8]} 4.
Ba4 {[%clk 0:02:51.3]} 4... Nf6 {[%clk 0:03:01.3]} 5. d3 {[%clk 0:02:51.6]} 5...
b5 {[%clk 0:03:00.5]} 6. Bb3 {[%clk 0:02:51.2]} 6... Be7 {[%clk 0:03:00.7]} 7.
O-O {[%clk 0:02:49.9]} 7... O-O {[%clk 0:03:00.4]} 8. c3 {[%clk 0:02:50.5]} 8...
d6 {[%clk 0:03:00.4]} 9. Re1 {[%clk 0:02:49.4]} 9... Bg4 {[%clk 0:03:00.2]} 10.
h3 {[%clk 0:02:48.5]} 10... Bh5 {[%clk 0:03:00.5]} 11. Nbd2 {[%clk 0:02:48.2]}
11... Na5 {[%clk 0:03:00.1]} 12. Bc2 {[%clk 0:02:47.7]} 12... c5 {[%clk
0:03:00.5]} 13. Nf1 {[%clk 0:02:48.1]} 13... Nc6 {[%clk 0:03:00.6]} 14. Ng3
{[%clk 0:02:48]} 14... Bg6 {[%clk 0:03:01.1]} 15. a4 {[%clk 0:02:48.4]} 15...
Qc7 {[%clk 0:02:59.5]} 16. Nf5 {[%clk 0:02:42.6]} 16... Bxf5 {[%clk 0:02:58.1]}
17. exf5 {[%clk 0:02:42.9]} 17... Rfe8 {[%clk 0:02:58.4]} 18. Bg5 {[%clk
0:02:35.6]} 18... h6 {[%clk 0:02:55.8]} 19. Bh4 {[%clk 0:02:35.2]} 19... Nd5
{[%clk 0:02:52.8]} 20. Bxe7 {[%clk 0:02:34.7]} 20... Qxe7 {[%clk 0:02:53.5]} 21.
d4 {[%clk 0:02:34.1]} 21... cxd4 {[%clk 0:02:48.6]} 22. cxd4 {[%clk 0:02:35]}
22... Nf4 {[%clk 0:02:37.7]} 23. axb5 {[%clk 0:02:31.8]} 23... axb5 {[%clk
0:02:31.1]} 24. Rxa8 {[%clk 0:02:31.1]} 24... Rxa8 {[%clk 0:02:32]} 25. dxe5
{[%clk 0:02:26.7]} 25... Nxe5 {[%clk 0:02:28.7]} 26. Nxe5 {[%clk 0:02:16.8]}
26... dxe5 {[%clk 0:02:28.3]} 27. Qf3 {[%clk 0:02:16.4]} 27... Ra7 {[%clk
0:02:20.3]} 28. Qe3 {[%clk 0:01:40.5]} 28... Qg5 {[%clk 0:02:03.5]} 29. Be4
{[%clk 0:01:39.9]} 29... Rd7 {[%clk 0:01:44.5]} 30. Qc5 {[%clk 0:01:22.4]} 30...
Rd2 {[%clk 0:00:52.2]} 31. Re3 {[%clk 0:01:11.5]} 31... Nh5 {[%clk 0:00:41.5]}
32. Qxe5 {[%clk 0:01:02]} 32... f6 {[%clk 0:00:31.3]} 33. Qe8+ {[%clk
0:00:56.7]} 33... Kh7 {[%clk 0:00:29.6]} 34. Qg6+ {[%clk 0:00:57.2]} 34... Qxg6
{[%clk 0:00:29.8]} 35. fxg6+ {[%clk 0:00:58.1]} 35... Kg8 {[%clk 0:00:30.4]} 36.
Bd5+ {[%clk 0:00:58.7]} 36... Kf8 {[%clk 0:00:30.9]} 37. Bf7 {[%clk 0:00:58.3]}
37... Rd8 {[%clk 0:00:30.5]} 38. g3 {[%clk 0:00:46.8]} 38... f5 {[%clk
0:00:25.7]} 39. Re5 {[%clk 0:00:46.6]} 39... Nf6 {[%clk 0:00:21.9]} 40. Rxb5
{[%clk 0:00:44.3]} 40... Ke7 {[%clk 0:00:21.5]} 41. Rxf5 {[%clk 0:00:43.6]}
41... Rd1+ {[%clk 0:00:21.5]} 42. Kg2 {[%clk 0:00:43.2]} 42... Rd2 {[%clk
0:00:21.7]} 43. b4 {[%clk 0:00:42.7]} 43... Rb2 {[%clk 0:00:21.7]} 44. b5 {[%clk
0:00:42.7]} 44... Kd6 {[%clk 0:00:22.1]} 45. Rxf6+ {[%clk 0:00:42.2]} 1-0

[Event "*** SCC Grand Prix: Titled Tuesday Blitz"]
[Site "Chess.com"]
[Date "2020.09.08"]
[Round "10"]
[White "The_Machine04"]
[Black "maxip32"]
[Result "0-1"]
[WhiteElo "2264"]
[BlackElo "2375"]
[TimeControl "180+1"]
[EndTime "11:56:13 PDT"]
[Termination "maxip32 won on time"]

1. d4 {[%clk 0:02:53.2]} 1... Nf6 {[%clk 0:02:54.3]} 2. Bg5 {[%clk 0:02:51.1]}
2... c5 {[%clk 0:02:53.6]} 3. e3 {[%clk 0:02:50.7]} 3... Qb6 {[%clk 0:02:52.7]}
4. Nc3 {[%clk 0:02:47.6]} 4... cxd4 {[%clk 0:02:51.8]} 5. exd4 {[%clk
0:02:38.8]} 5... Nc6 {[%clk 0:02:37.9]} 6. Nf3 {[%clk 0:02:32]} 6... e6 {[%clk
0:02:17]} 7. Be2 {[%clk 0:02:11.8]} 7... Be7 {[%clk 0:02:11.4]} 8. O-O {[%clk
0:02:10.5]} 8... O-O {[%clk 0:02:11.4]} 9. a3 {[%clk 0:01:51.1]} 9... d5 {[%clk
0:02:01]} 10. Bd3 {[%clk 0:01:33.7]} 10... h6 {[%clk 0:01:59.5]} 11. Be3 {[%clk
0:01:30.2]} 11... Ng4 {[%clk 0:01:57.8]} 12. Bf4 {[%clk 0:01:28.4]} 12... a6
{[%clk 0:01:55.2]} 13. h3 {[%clk 0:01:27.7]} 13... Nf6 {[%clk 0:01:53.8]} 14.
Ne2 {[%clk 0:01:24.4]} 14... Qd8 {[%clk 0:01:45]} 15. Ne5 {[%clk 0:01:19.8]}
15... Nxe5 {[%clk 0:01:42.9]} 16. Bxe5 {[%clk 0:01:20.7]} 16... Bd6 {[%clk
0:01:41.4]} 17. f4 {[%clk 0:01:19.6]} 17... Ne4 {[%clk 0:01:39.7]} 18. Bxe4
{[%clk 0:01:16.1]} 18... dxe4 {[%clk 0:01:40.6]} 19. Nc3 {[%clk 0:01:16.3]}
19... f5 {[%clk 0:01:35.2]} 20. Qe1 {[%clk 0:01:07.6]} 20... Bxe5 {[%clk
0:01:32.8]} 21. dxe5 {[%clk 0:01:06.3]} 21... Qb6+ {[%clk 0:01:32.5]} 22. Qf2
{[%clk 0:00:54.1]} 22... e3 {[%clk 0:01:11.4]} 23. Qe2 {[%clk 0:00:46.2]} 23...
Bd7 {[%clk 0:00:49.5]} 24. Rfe1 {[%clk 0:00:22.6]} 24... Qxb2 {[%clk 0:00:39.2]}
25. Qd3 {[%clk 0:00:14.1]} 25... Rac8 {[%clk 0:00:24.4]} 26. Qxd7 {[%clk
0:00:01.5]} 26... Qxc3 {[%clk 0:00:19.7]} 27. Qxe6+ {[%clk 0:00:01.7]} 27... Kh8
{[%clk 0:00:19.2]} 0-1

[Event "*** SCC Grand Prix: Titled Tuesday Blitz"]
[Site "Chess.com"]
[Date "2020.09.08"]
[Round "10"]
[White "sokidze"]
[Black "Ave_Mariia"]
[Result "0-1"]
[WhiteElo "2604"]
[BlackElo "2489"]
[TimeControl "180+1"]
[EndTime "11:56:14 PDT"]
[Termination "Ave_Mariia won by resignation"]

1. d4 {[%clk 0:03:00.9]} 1... Nf6 {[%clk 0:02:59.8]} 2. g3 {[%clk 0:03:01]} 2...
e6 {[%clk 0:02:57.1]} 3. Bg2 {[%clk 0:03:01]} 3... c5 {[%clk 0:02:56.7]} 4. Nf3
{[%clk 0:03:00.7]} 4... cxd4 {[%clk 0:02:53.7]} 5. O-O {[%clk 0:03:00.7]} 5...
Be7 {[%clk 0:02:50.5]} 6. Nxd4 {[%clk 0:02:59.5]} 6... O-O {[%clk 0:02:49.9]} 7.
c4 {[%clk 0:02:59.1]} 7... Nc6 {[%clk 0:02:46.1]} 8. Nc3 {[%clk 0:02:57.7]} 8...
Qb6 {[%clk 0:02:41.9]} 9. Ndb5 {[%clk 0:02:52.5]} 9... d5 {[%clk 0:02:36.2]} 10.
Be3 {[%clk 0:02:43.8]} 10... Qa5 {[%clk 0:02:33.9]} 11. cxd5 {[%clk 0:02:42.5]}
11... Nxd5 {[%clk 0:02:32.4]} 12. Nxd5 {[%clk 0:02:34]} 12... exd5 {[%clk
0:02:29.5]} 13. Nd4 {[%clk 0:02:23.7]} 13... Bg4 {[%clk 0:02:25.8]} 14. h3
{[%clk 0:02:19.2]} 14... Be6 {[%clk 0:02:22.8]} 15. Nxe6 {[%clk 0:02:05.2]}
15... fxe6 {[%clk 0:02:22.4]} 16. Qb3 {[%clk 0:02:06.1]} 16... Qa6 {[%clk
0:02:08.1]} 17. Rfe1 {[%clk 0:01:57.4]} 17... Bf6 {[%clk 0:02:02]} 18. Rac1
{[%clk 0:01:48.8]} 18... Rfc8 {[%clk 0:02:00.1]} 19. h4 {[%clk 0:01:43.7]} 19...
Kh8 {[%clk 0:01:55.6]} 20. Bh3 {[%clk 0:01:37.7]} 20... Ne5 {[%clk 0:01:46.8]}
21. Bd4 {[%clk 0:01:18.7]} 21... Rxc1 {[%clk 0:01:43.4]} 22. Rxc1 {[%clk
0:01:08.7]} 22... Qxe2 {[%clk 0:01:43.6]} 23. Bxe5 {[%clk 0:00:38.1]} 23... Bxe5
{[%clk 0:01:44.5]} 24. Rc2 {[%clk 0:00:26.2]} 24... Qe1+ {[%clk 0:01:39.4]} 25.
Kg2 {[%clk 0:00:26.3]} 25... Qe4+ {[%clk 0:01:29]} 26. Kg1 {[%clk 0:00:25.8]}
26... Rf8 {[%clk 0:01:25]} 27. Qe3 {[%clk 0:00:19.5]} 27... Qxc2 {[%clk
0:01:22.3]} 28. Qxe5 {[%clk 0:00:17.2]} 28... Qxf2+ {[%clk 0:01:21]} 29. Kh1
{[%clk 0:00:16.1]} 29... h6 {[%clk 0:01:18.7]} 30. Bg2 {[%clk 0:00:12.5]} 30...
Qf6 {[%clk 0:01:13.1]} 31. Qe2 {[%clk 0:00:12]} 31... Rc8 {[%clk 0:01:08.7]} 32.
Kh2 {[%clk 0:00:12.3]} 32... Qg6 {[%clk 0:00:57]} 33. Qb5 {[%clk 0:00:09.5]}
33... Rc2 {[%clk 0:00:53.5]} 34. Qf1 {[%clk 0:00:05.3]} 34... Qe4 {[%clk
0:00:46.4]} 35. Qf8+ {[%clk 0:00:03.6]} 35... Kh7 {[%clk 0:00:45.9]} 36. Qf1
{[%clk 0:00:02.5]} 36... Rxb2 {[%clk 0:00:45.9]} 37. Kh1 {[%clk 0:00:02.3]}
37... Qxg2+ {[%clk 0:00:45.2]} 38. Qxg2 {[%clk 0:00:03.2]} 38... Rxg2 {[%clk
0:00:45.7]} 39. Kxg2 {[%clk 0:00:03.5]} 39... Kg6 {[%clk 0:00:45.6]} 40. Kf3
{[%clk 0:00:04.4]} 40... Kf5 {[%clk 0:00:45.9]} 0-1